bitfinex/quotes_SOLUSD_20240708
["timestamp","ask_amount","ask_price","bid_price","bid_amount"]
[1720400833289,100.0,129.11,128.96,20.17]
[1720400833621,100.0,129.11,128.99,40.39]
[1720400833797,100.0,129.15,129.03,40.39]
[1720400833989,100.0,129.13,129.04,20.17]
[1720400834188,100.0,129.14,129.04,20.17]
[1720400834418,40.39,129.25,129.04,20.17]
[1720400834720,100.0,129.17,129.04,20.17]
[1720400835036,100.0,129.17,129.08,40.39]
[1720400835198,15.5813,129.28,129.09,43.45]
[1720400835199,100.0,129.23,129.09,43.45]
[1720400835537,100.0,129.23,129.12,79.6324]
[1720400835707,100.0,129.23,129.13,43.45]
[1720400835898,100.0,129.24,129.13,43.45]
[1720400836215,100.0,129.3,129.13,43.45]
[1720400836400,100.0,129.3,129.18,29.5202]
[1720400836600,100.0,129.3,129.19,20.17]
[1720400836796,100.0,129.3,129.19,43.45]
[1720400837013,100.0,129.3,129.19,51.63574227]
[1720400837216,100.0,129.3,129.2,40.39]
[1720400837503,100.0,129.3,129.21,0.17]
[1720400837706,100.0,129.3,129.21,20.17]
[1720400838220,100.0,129.31,129.21,0.17]
[1720400838529,102.22077456,129.3,129.18,6.2402]
[1720400838696,102.22077456,129.3,129.19,20.0]
[1720400838899,100.0,129.3,129.19,20.0]
[1720400839205,100.0,129.32,129.19,20.0]
[1720400839419,2.22686892,129.32,129.19,20.0]
[1720400839604,100.0,129.31,129.19,20.0]
[1720400839808,102.22686892,129.32,129.2,0.17]
[1720400840012,100.0,129.31,129.2,0.17]
[1720400840303,100.0,129.33,129.2,0.17]
[1720400840503,1.0362099,129.39,129.2,0.17]
[1720400840504,100.0,129.36,129.2,0.17]
[1720400840705,100.0,129.3,129.2,0.17]
[1720400840912,1.0362099,129.39,129.2,0.17]
[1720400841232,100.0,129.31,129.2,0.17]
[1720400841438,100.0,129.34,129.2,0.17]
[1720400841603,100.0,129.32,129.2,0.17]
[1720400842333,2.22686892,129.38,129.2,0.17]
[1720400842520,2.22686892,129.38,129.23,40.39]
[1720400842521,100.0,129.37,129.23,40.39]
[1720400842709,100.0,129.35,129.24,20.17]
[1720400842907,100.0,129.34,129.24,20.17]
[1720400843132,100.0,129.34,129.24,0.17]
[1720400843304,100.0,129.29,129.18,6.2402]
[1720400843634,100.0,129.27,129.18,6.2402]
[1720400843842,100.0,129.26,129.18,6.2402]
[1720400844121,100.0,129.24,129.18,6.2402]
[1720400844335,100.0,129.22,129.18,6.2402]
[1720400844507,40.39,129.32,129.12,6.3306]
[1720400844508,100.0,129.2,129.12,6.3306]
[1720400844704,15.0,129.28,129.12,6.3306]
[1720400844705,120.0,129.19,129.12,6.3306]
[1720400844934,20.0,129.19,129.12,6.3306]
[1720400845227,100.0,129.17,129.12,6.3306]
[1720400845526,100.0,129.23,129.12,6.3306]
[1720400845740,15.2636,129.3,129.12,6.3306]
[1720400845914,100.0,129.22,129.12,6.3306]
[1720400846116,100.0,129.28,129.12,6.3306]
[1720400846424,100.0,129.22,129.13,20.0]
[1720400846920,100.0,129.22,129.12,6.3306]
[1720400847119,15.2636,129.3,129.12,6.3306]
[1720400847327,100.0,129.24,129.13,0.17]
[1720400847527,100.0,129.29,129.14,63.67]
[1720400847733,7.96918363,129.31,129.14,63.67]
[1720400847734,7.96918363,129.31,129.2,6.0376]
[1720400847918,100.0,129.36,129.21,0.17]
[1720400848103,100.0,129.36,129.22,53.9317]
[1720400848303,100.0,129.36,129.23,20.17]
[1720400848719,100.0,129.36,129.23,25.5862]
[1720400848928,15.5813,129.43,129.23,25.5862]
[1720400848929,100.0,129.34,129.23,0.17]
[1720400849134,100.0,129.32,129.23,0.17]
[1720400849538,100.0,129.35,129.22,0.17]
[1720400849836,100.0,129.26,129.14,5.42]
[1720400850004,100.0,129.28,129.13,6.6419]
[1720400850204,100.0,129.28,129.2,5.4178]
[1720400850417,100.0,129.28,129.21,5.4175]
[1720400850617,100.0,129.28,129.19,5.418]
[1720400850821,100.0,129.28,129.16,40.39]
[1720400851003,100.0,129.28,129.21,5.4175]
[1720400851205,17.22686892,129.38,129.22,0.17]
[1720400851206,2.22686892,129.38,129.22,0.17]
[1720400851500,100.0,129.32,129.22,0.17]
[1720400852119,100.0,129.33,129.21,0.17]
[1720400852629,100.0,129.35,129.22,6.5462]
[1720400852819,2.22686892,129.38,129.25,5.4158]
[1720400853030,2.22686892,129.38,129.23,20.17]
[1720400853215,2.22686892,129.38,129.23,25.5866]
[1720400853532,100.0,129.34,129.23,0.17]
[1720400853720,2.22686892,129.38,129.23,0.17]
[1720400853721,100.0,129.37,129.23,0.17]
[1720400853924,100.0,129.36,129.23,20.17]
[1720400854313,100.0,129.36,129.24,5.4161]
[1720400854511,100.0,129.36,129.23,20.17]
[1720400854512,100.0,129.36,129.26,5.4154]
[1720400854728,100.0,129.36,129.27,0.17]
[1720400855414,100.0,129.37,129.27,0.17]
[1720400855604,2.22686892,129.38,129.26,0.17]
[1720400855805,100.0,129.37,129.23,20.0]
[1720400856008,100.0,129.37,129.25,5.4154]
[1720400856212,100.0,129.37,129.23,20.0]
[1720400856437,100.0,129.37,129.25,5.4156]
[1720400856732,100.0,129.37,129.26,20.0]
[1720400856921,100.0,129.37,129.26,5.4153]
[1720400857232,2.22686892,129.38,129.23,20.0]
[1720400857233,100.0,129.36,129.23,20.0]
[1720400857534,100.0,129.37,129.22,6.5462]
[1720400857705,100.0,129.37,129.3,5.4134]
[1720400857909,100.0,129.37,129.23,40.39]
[1720400858328,100.0,129.37,129.27,5.4146]
[1720400858633,100.0,129.37,129.23,40.39]
[1720400858936,100.0,129.37,129.28,25.4145]
[1720400859145,100.0,129.37,129.29,0.17]
[1720400860416,100.0,129.37,129.29,5.5837]
[1720400860605,100.0,129.37,129.24,20.0]
[1720400860806,100.0,129.37,129.23,40.39]
[1720400861033,1.0362099,129.39,129.22,11.9632]
[1720400861034,100.0,129.32,129.22,6.5462]
[1720400861413,100.0,129.35,129.22,6.5462]
[1720400861612,100.0,129.33,129.22,6.5462]
[1720400861810,3.44577105,129.34,129.22,6.5462]
[1720400862117,100.0,129.33,129.22,6.5462]
[1720400862331,23.44577105,129.34,129.22,11.9628]
[1720400862332,3.44577105,129.34,129.22,11.9628]
[1720400862514,100.0,129.33,129.22,6.5462]
[1720400862715,100.0,129.3,129.22,6.5462]
[1720400862921,100.0,129.28,129.22,6.5462]
[1720400863123,3.43358218,129.28,129.22,6.5462]
[1720400863362,100.0,129.27,129.15,6.2054]
[1720400863640,100.0,129.26,129.15,6.2054]
[1720400863814,100.0,129.24,129.15,6.2054]
[1720400864021,100.0,129.26,129.15,6.2054]
[1720400864422,100.0,129.25,129.15,6.2054]
[1720400864728,3.42757878,129.25,129.15,6.2054]
[1720400865111,103.42757878,129.25,129.15,6.2054]
[1720400865510,3.42757878,129.25,129.15,6.2054]
[1720400865830,103.42757878,129.25,129.15,6.2054]
[1720400866017,3.42757878,129.25,129.15,6.2054]
[1720400866212,100.0,129.24,129.15,6.2054]
[1720400866412,3.59757878,129.25,129.15,6.2054]
[1720400867137,3.42757878,129.25,129.15,6.2054]
[1720400867939,100.0,129.29,129.16,0.17]
[1720400868244,100.0,129.27,129.15,6.2054]
[1720400868444,100.0,129.25,129.15,6.2054]
[1720400868738,100.0,129.23,129.15,6.2054]
[1720400869335,100.0,129.22,129.15,6.2054]
[1720400869915,2.22077456,129.23,129.15,6.2054]
[1720400870115,100.0,129.28,129.15,6.2054]
[1720400870333,100.0,129.28,129.16,20.0]
[1720400870536,103.44577105,129.28,129.17,0.17]
[1720400870735,3.44577105,129.28,129.15,6.2054]
[1720400870932,100.0,129.24,129.15,6.2054]
[1720400871156,3.44577105,129.28,129.15,6.2054]
[1720400871157,100.0,129.27,129.15,6.2054]
[1720400871656,100.0,129.27,129.16,38.5082]
[1720400871959,100.0,129.27,129.16,15.2282]
[1720400872338,100.0,129.33,129.17,20.17]
[1720400872544,100.0,129.33,129.18,40.39]
[1720400872757,100.0,129.33,129.19,43.45]
[1720400873462,100.0,129.33,129.19,20.17]
[1720400873952,2.22077456,129.32,129.19,20.17]
[1720400874356,2.22077456,129.32,129.19,0.17]
[1720400874564,2.22077456,129.32,129.18,0.17]
[1720400875653,100.0,129.3,129.18,0.17]
[1720400876160,100.0,129.28,129.18,0.17]
[1720400876472,100.0,129.27,129.16,15.2282]
[1720400876631,100.0,129.23,129.15,6.2054]
[1720400877669,20.0,129.26,129.15,6.2054]
[1720400877830,100.0,129.24,129.15,6.2054]
[1720400878036,100.0,129.25,129.15,6.2054]
[1720400878233,100.0,129.21,129.15,6.2054]
[1720400878530,100.0,129.21,129.1,16.0142]
[1720400878531,100.0,129.18,129.1,6.3598]
[1720400878845,100.0,129.16,129.1,6.3598]
[1720400879943,100.0,129.18,129.1,6.3598]
[1720400880234,100.0,129.16,129.1,6.3598]
[1720400880440,100.0,129.19,129.1,6.3598]
[1720400880654,100.0,129.18,129.1,6.3598]
[1720400881044,100.0,129.24,129.1,6.3598]
[1720400881359,100.0,129.22,129.1,6.3598]
[1720400881579,100.0,129.24,129.1,6.3598]
[1720400881860,2.22077456,129.32,129.1,6.3598]
[1720400881861,100.0,129.27,129.12,23.28]
[1720400882032,100.0,129.27,129.13,20.17]
[1720400882236,100.0,129.25,129.14,20.0]
[1720400882448,2.22077456,129.32,129.14,0.17]
[1720400882743,2.22077456,129.32,129.11,20.17]
[1720400883062,100.0,129.27,129.11,83.84]
[1720400883251,100.0,129.3,129.15,6.2841]
[1720400883575,100.0,129.3,129.16,20.17]
[1720400883857,102.22077456,129.32,129.16,43.45]
[1720400884450,100.0,129.3,129.16,20.0]
[1720400884644,100.0,129.28,129.16,20.0]
[1720400884841,100.0,129.3,129.16,20.0]
[1720400885268,100.0,129.28,129.16,20.0]
[1720400885768,100.0,129.26,129.16,20.0]
[1720400885968,2.22077456,129.32,129.15,6.2841]
[1720400885969,100.0,129.24,129.15,6.2841]
[1720400886265,100.0,129.2,129.15,6.2841]
[1720400886964,100.0,129.18,129.1,6.374]
[1720400887552,100.0,129.15,129.1,6.374]
[1720400888260,100.0,129.13,129.02,6.241]
[1720400888455,100.0,129.15,129.02,6.241]
[1720400888667,100.0,129.17,129.02,6.241]
[1720400888871,100.0,129.17,129.03,38.28]
[1720400889055,100.0,129.17,129.02,6.241]
[1720400889056,100.0,129.17,129.05,78.67]
[1720400889259,100.0,129.17,129.06,29.521]
[1720400889557,56.1072,129.29,129.06,29.521]
[1720400889558,100.0,129.21,129.06,6.241]
[1720400889762,100.0,129.24,129.09,63.67]
[1720400889958,100.0,129.26,129.11,39.8082]
[1720400890279,100.0,129.29,129.13,6.5122]
[1720400890448,100.0,129.31,129.14,75.56]
[1720400890967,100.0,129.31,129.15,23.28]
[1720400891146,100.0,129.31,129.17,23.28]
[1720400891471,2.22077456,129.32,129.19,6.0974]
[1720400891780,2.22077456,129.32,129.2,20.0]
[1720400892088,100.0,129.31,129.2,20.17]
[1720400892245,2.22077456,129.32,129.2,0.17]
[1720400892450,100.0,129.31,129.2,0.17]
[1720400892972,100.0,129.29,129.19,6.0974]
[1720400893146,2.22077456,129.32,129.19,6.0974]
[1720400893147,100.0,129.27,129.19,6.0974]
[1720400893346,100.0,129.21,129.13,6.0078]
[1720400893581,100.0,129.25,129.13,6.0078]
[1720400893762,100.0,129.21,129.13,6.0078]
[1720400894250,20.0,129.2,129.13,6.0078]
[1720400894457,100.0,129.17,129.04,6.4518]
[1720400894767,2.39077456,129.24,129.04,6.4518]
[1720400894768,100.0,129.13,129.04,6.4518]
[1720400895350,20.0,129.12,129.04,6.4518]
[1720400895868,20.0,129.12,129.04,5.4518]
[1720400896073,100.0,129.13,129.04,5.4518]
[1720400896375,0.17,129.18,129.04,5.4518]
[1720400896376,100.0,129.18,129.04,5.4518]
[1720400896551,100.0,129.18,129.05,43.28]
[1720400896891,102.22077456,129.24,129.07,38.28]
[1720400897169,100.0,129.22,129.08,20.0]
[1720400897374,100.0,129.22,129.09,0.17]
[1720400897677,100.0,129.19,129.01,48.169]
[1720400898053,100.0,129.23,129.01,63.169]
[1720400898371,100.0,129.23,129.07,63.67]
[1720400898766,100.0,129.23,129.08,0.17]
[1720400898969,100.0,129.23,129.09,6.1078]
[1720400899169,100.0,129.23,129.1,20.17]
[1720400900381,100.0,129.17,129.09,6.1078]
[1720400900587,100.0,129.17,129.03,16.1563]
[1720400900588,15.054,129.21,129.03,22.4407]
[1720400900885,100.0,129.13,129.03,22.4407]
[1720400901081,100.0,129.13,129.04,7.779]
[1720400901379,100.0,129.11,129.04,7.779]
[1720400901596,100.0,129.13,129.04,7.779]
[1720400901991,20.0,129.2,129.03,6.2844]
[1720400901992,100.0,129.15,129.03,6.2844]
[1720400902188,100.0,129.09,128.97,6.5097]
[1720400902488,0.17,129.08,128.97,6.5097]
[1720400902687,100.0,129.06,128.97,6.5097]
[1720400903099,20.0,129.05,128.97,6.5097]
[1720400903304,100.0,129.03,128.97,6.5097]
[1720400903467,20.0,129.02,128.97,6.5097]
[1720400903785,100.0,129.06,128.97,6.5097]
[1720400904006,100.0,129.05,128.97,6.5097]
[1720400904287,0.17,129.04,128.94,0.8362099]
[1720400904494,100.0,129.03,128.94,0.8362099]
[1720400904962,15.0682,129.1,128.94,0.8362099]
[1720400904963,100.0,129.08,128.94,0.8362099]
[1720400905160,20.0,129.07,128.96,5.4277]
[1720400905366,100.0,129.08,128.94,0.8362099]
[1720400905668,40.39,129.15,128.94,0.8362099]
[1720400905862,100.0,129.06,128.94,20.8362099]
[1720400906063,100.0,129.04,128.94,0.8362099]
[1720400906368,0.17,129.14,128.94,20.8362099]
[1720400906565,100.0,129.1,128.94,0.8362099]
[1720400906775,100.0,129.08,128.94,0.8362099]
[1720400907195,100.0,129.11,128.94,0.8362099]
[1720400907389,100.0,129.11,129.01,0.17]
[1720400907693,40.39,129.15,128.94,0.8362099]
[1720400907894,100.0,129.05,128.94,26.2649099]
[1720400908095,100.0,129.07,128.94,0.8362099]
[1720400908402,40.39,129.15,128.94,0.8362099]
[1720400908694,100.0,129.05,128.94,20.8362099]
[1720400908989,100.0,129.02,128.94,0.8362099]
[1720400909901,40.39,129.11,128.94,0.8362099]
[1720400910197,100.0,129.06,128.94,0.8362099]
[1720400910400,40.39,129.15,129.01,6.2951]
[1720400910605,100.0,129.11,129.01,6.2951]
[1720400910804,100.0,129.12,129.01,6.2951]
[1720400911095,100.0,129.1,129.02,0.17]
[1720400911403,15.7006,129.16,129.02,0.17]
[1720400911404,100.0,129.12,129.02,0.17]
[1720400912380,100.0,129.12,129.02,20.17]
[1720400912814,100.0,129.15,129.02,20.17]
[1720400913105,9.2414933,129.21,129.02,20.17]
[1720400913293,100.0,129.11,129.02,20.17]
[1720400913600,100.0,129.11,129.02,0.17]
[1720400913812,100.0,129.13,129.02,0.17]
[1720400914110,100.0,129.16,129.03,23.28]
[1720400914274,100.0,129.16,129.04,43.45]
[1720400914471,100.0,129.16,129.04,20.17]
[1720400914675,100.0,129.18,129.04,0.17]
[1720400914891,100.0,129.18,129.04,43.45]
[1720400915089,100.0,129.2,129.04,83.84]
[1720400915302,15.0,129.3,129.09,23.28]
[1720400915303,100.0,129.24,129.09,23.28]
[1720400915504,100.0,129.24,129.11,6.4701]
[1720400915691,100.0,129.24,129.12,43.45]
[1720400915896,100.0,129.24,129.12,20.17]
[1720400916083,15.8417,129.3,129.12,0.17]
[1720400916279,100.0,129.21,129.12,20.17]
[1720400916607,100.0,129.25,129.12,20.17]
[1720400916987,100.0,129.25,129.12,43.45]
[1720400917781,100.0,129.26,129.12,43.45]
[1720400917996,100.0,129.26,129.12,83.84]
[1720400918313,100.0,129.25,129.12,20.17]
[1720400918477,100.0,129.26,129.13,23.28]
[1720400918678,100.0,129.28,129.15,23.28]
[1720400918897,100.0,129.28,129.16,20.17]
[1720400919505,100.0,129.28,129.16,43.45]
[1720400919800,100.0,129.3,129.17,29.4666]
[1720400920005,100.0,129.3,129.18,43.45]
[1720400920204,100.0,129.3,129.19,15.888]
[1720400920387,100.0,129.32,129.2,0.17]
[1720400920705,100.0,129.32,129.2,20.17]
[1720400920907,100.0,129.36,129.2,20.17]
[1720400921110,100.0,129.36,129.21,6.5006]
[1720400921406,100.0,129.36,129.23,40.39]
[1720400921593,100.0,129.36,129.24,20.17]
[1720400923177,1.0362099,129.39,129.24,20.17]
[1720400923178,100.0,129.37,129.24,20.17]
[1720400923707,100.0,129.35,129.24,20.17]
[1720400924006,100.0,129.32,129.21,6.5006]
[1720400924207,100.0,129.3,129.21,6.5006]
[1720400924508,100.0,129.37,129.22,40.39]
[1720400924684,101.0362099,129.39,129.23,6.5203]
[1720400925083,1.0362099,129.39,129.23,6.5203]
[1720400925390,100.0,129.38,129.23,6.5203]
[1720400925599,100.0,129.38,129.24,20.17]
[1720400926102,1.0362099,129.39,129.24,20.17]
[1720400926406,1.0362099,129.39,129.26,40.39]
[1720400926702,1.0362099,129.39,129.27,20.17]
[1720400928816,1.0362099,129.39,129.28,38.8046]
[1720400929124,1.0362099,129.39,129.3,40.39]
[1720400929297,1.0362099,129.39,129.31,20.17]
[1720400929886,0.04595886,129.44,129.32,29.4439]
[1720400930118,0.04595886,129.44,129.33,20.17]
[1720400930291,100.04595886,129.44,129.33,20.17]
[1720400930490,0.04595886,129.44,129.33,20.17]
[1720400931817,0.04595886,129.44,129.34,15.0]
[1720400932021,0.04595886,129.44,129.35,60.56]
[1720400932223,100.0,129.4,129.32,6.1639]
[1720400932395,100.0,129.43,129.32,6.1639]
[1720400933323,100.0,129.42,129.32,6.1639]
[1720400933828,100.0,129.37,129.32,6.1639]
[1720400934697,100.0,129.36,129.32,6.1639]
[1720400935029,100.0,129.32,129.26,6.4317]
[1720400935316,0.17,129.33,129.16,22.4621]
[1720400935513,100.0,129.31,129.17,30.0]
[1720400935718,20.0,129.3,129.16,22.4621]
[1720400936292,40.39,129.38,129.16,22.4621]
[1720400936293,100.0,129.31,129.16,22.4621]
[1720400936599,20.0,129.3,129.16,22.4621]
[1720400936801,100.0,129.31,129.17,7.779]
[1720400937005,20.0,129.37,129.16,22.4621]
[1720400937189,100.0,129.31,129.16,22.4621]
[1720400937398,100.0,129.34,129.19,40.39]
[1720400937592,100.0,129.35,129.2,6.2922]
[1720400937897,100.0,129.35,129.21,0.17]
[1720400938096,100.0,129.35,129.21,20.17]
[1720400938302,100.0,129.33,129.21,20.17]
[1720400938798,100.0,129.35,129.21,20.17]
[1720400939228,100.0,129.38,129.21,20.17]
[1720400939515,100.0,129.36,129.21,20.17]
[1720400939725,100.0,129.38,129.24,21.2819]
[1720400939921,100.0,129.35,129.25,20.17]
[1720400940221,100.0,129.33,129.24,21.2819]
[1720400940421,100.0,129.34,129.24,21.2819]
[1720400940722,40.39,129.42,129.24,21.2819]
[1720400940899,100.0,129.37,129.24,44.5619]
[1720400941097,100.0,129.35,129.24,21.2819]
[1720400941719,100.0,129.37,129.24,21.2819]
[1720400941925,100.0,129.37,129.25,0.17]
[1720400942218,100.0,129.37,129.25,23.45]
[1720400942401,100.0,129.37,129.26,83.67]
[1720400942597,100.0,129.42,129.28,29.7615]
[1720400942800,100.0,129.42,129.29,20.17]
[1720400942995,15.4781,129.48,129.3,23.28]
[1720400943220,100.0,129.43,129.31,20.17]
[1720400943420,100.0,129.45,129.31,20.17]
[1720400943642,100.0,129.43,129.31,20.17]
[1720400943928,100.0,129.46,129.31,20.17]
[1720400944103,15.4781,129.48,129.31,20.17]
[1720400944303,100.0,129.37,129.28,6.4815]
[1720400944529,100.0,129.35,129.28,6.4815]
[1720400944727,15.0,129.45,129.28,6.4815]
[1720400944728,100.0,129.34,129.28,6.4815]
[1720400944915,100.0,129.32,129.28,6.4815]
[1720400945302,100.0,129.29,129.23,6.3753]
[1720400945504,100.0,129.3,129.23,6.3753]
[1720400945911,100.0,129.33,129.23,6.3753]
[1720400946230,100.0,129.34,129.23,6.3753]
[1720400946434,100.0,129.32,129.24,7.779]
[1720400946724,100.0,129.34,129.25,27.779]
[1720400946925,100.0,129.37,129.25,27.779]
[1720400947134,100.0,129.37,129.25,51.059]
[1720400947318,100.0,129.37,129.25,27.779]
[1720400947642,100.0,129.37,129.25,7.779]
[1720400947808,15.7382,129.46,129.24,7.779]
[1720400947809,100.0,129.33,129.24,7.779]
[1720400948008,100.0,129.3,129.24,7.779]
[1720400948430,40.39,129.4,129.24,7.779]
[1720400948637,100.0,129.3,129.24,7.779]
[1720400949635,100.0,129.28,129.24,7.779]
[1720400949934,20.0,129.29,129.08,9.169818]
[1720400950120,20.0,129.29,129.14,31.059]
[1720400950311,100.0,129.28,129.14,31.059]
[1720400950721,115.0,129.33,129.18,31.059]
[1720400950926,115.0,129.33,129.18,23.28]
[1720400951235,0.2904785,129.39,129.21,63.67]
[1720400951236,100.0,129.37,129.21,63.67]
[1720400951434,100.0,129.37,129.22,43.45]
[1720400951607,15.2904785,129.39,129.22,43.45]
[1720400951608,115.2904785,129.39,129.22,43.45]
[1720400951808,100.2904785,129.39,129.25,63.67]
[1720400952005,100.2904785,129.39,129.26,20.17]
[1720400952241,0.2904785,129.39,129.26,20.17]
[1720400952533,15.2904785,129.39,129.26,20.17]
[1720400953124,15.0,129.37,129.27,6.1123]
[1720400953338,0.2904785,129.39,129.28,20.17]
[1720400953831,0.2904785,129.39,129.29,40.39]
[1720400954144,0.2904785,129.39,129.3,0.17]
[1720400954334,115.0,129.35,129.27,6.1123]
[1720400954511,15.0,129.33,129.27,6.1123]
[1720400954712,15.0,129.35,129.27,6.1123]
[1720400955042,0.2904785,129.39,129.27,6.1123]
[1720400955643,0.2904785,129.39,129.29,63.67]
[1720400956013,31.6418,129.48,129.32,6.6035]
[1720400956214,100.0,129.47,129.33,20.17]
[1720400956428,100.0,129.45,129.33,20.17]
[1720400956735,100.0,129.47,129.33,20.17]
[1720400956905,115.0,129.48,129.33,20.17]
[1720400957112,100.0,129.45,129.33,34.1618]
[1720400957625,15.0,129.48,129.33,34.1618]
[1720400957828,100.0,129.47,129.33,57.4418]
[1720400958045,100.0,129.47,129.33,97.8318]
[1720400958418,100.0,129.47,129.33,74.5518]
[1720400958616,15.0,129.46,129.33,74.5518]
[1720400958837,115.0,129.48,129.33,74.5518]
[1720400959025,15.0,129.46,129.33,74.5518]
[1720400959344,15.0,129.46,129.33,97.8318]
[1720400959635,15.0,129.47,129.33,97.8318]
[1720400959835,100.0,129.48,129.33,97.8318]
[1720400960037,100.0,129.47,129.33,74.5518]
[1720400960229,115.2,129.49,129.33,74.5518]
[1720400960543,15.0,129.45,129.33,33.9918]
[1720400961044,15.0,129.45,129.33,13.9918]
[1720400961221,100.0,129.42,129.33,13.9918]
[1720400961747,15.0,129.41,129.33,13.9918]
[1720400961911,100.0,129.38,129.32,6.6035]
[1720400962255,15.0,129.36,129.27,6.2598]
[1720400962410,15.3943,129.43,129.27,6.2598]
[1720400962411,100.0,129.4,129.27,6.2598]
[1720400962615,115.0,129.42,129.27,29.5398]
[1720400962951,115.0,129.36,129.27,6.2598]
[1720400963235,115.0,129.36,129.13,46.64]
[1720400963236,15.0,129.32,129.21,6.6005]
[1720400963440,100.0,129.33,129.21,6.6005]
[1720400963614,20.0,129.35,129.21,29.8805]
[1720400963815,100.0,129.36,129.21,29.8805]
[1720400964011,15.0,129.39,129.24,63.67]
[1720400964320,15.0,129.41,129.28,63.67]
[1720400964624,15.0,129.41,129.28,54.3819]
[1720400964829,100.0,129.4,129.28,13.9919]
[1720400965020,100.0,129.4,129.29,20.0]
[1720400965021,15.0,129.37,129.29,20.0]
[1720400965215,100.0,129.38,129.26,47.0551]
[1720400965439,15.0,129.39,129.27,20.17]
[1720400965440,115.0,129.39,129.27,20.17]
[1720400966124,15.0,129.41,129.27,43.45]
[1720400966327,115.0,129.41,129.27,20.17]
[1720400966631,15.0,129.36,129.26,6.6651]
[1720400966816,100.0,129.35,129.26,6.6651]
[1720400967017,15.0,129.38,129.26,6.6651]
[1720400967217,100.0,129.37,129.26,6.6651]
[1720400967413,0.04595886,129.44,129.26,6.6651]
[1720400967414,15.0,129.4,129.26,6.6651]
[1720400967614,100.0,129.38,129.26,6.6651]
[1720400967843,115.0,129.38,129.26,6.6651]
[1720400968141,15.0,129.4,129.27,20.0]
[1720400968343,15.0,129.37,129.28,0.17]
[1720400968547,100.0,129.38,129.28,0.17]
[1720400968716,15.0,129.39,129.28,0.17]
[1720400968913,100.0,129.38,129.28,0.17]
[1720400969123,15.0,129.39,129.28,0.17]
[1720400969420,15.0,129.41,129.28,0.17]
[1720400969624,115.0,129.39,129.28,0.17]
[1720400969819,115.0,129.37,129.26,6.6651]
[1720400970043,15.0,129.35,129.26,6.6651]
[1720400970341,115.0,129.37,129.26,6.6651]